Cogmind - Beta 10 X2 @@@ ROGUE MODE // 2020.06.23 @ 18:45:00 Player: Decinym Result: Self-destructed Performance ------------- Evolutions (4) 2000 Regions Visited (14) 2800 Robots Destroyed (48) 240 Value Destroyed (1549) 1549 Prototype IDs (240) 4800 Alien Tech Used (0) 0 Bonus (4786) 4786 TOTAL SCORE: 16175 Bonus ------- Follower Combat Kills 1083 Aligned with FarCom 300 Met Data Miner 300 Used Data Conduit 3000 Met Imprinter 300 Friendly Fire -197 Cogmind --------- Core Integrity 768/850 Matter 300/300 Energy 535/535 System Corruption 0% Temperature Cool (20) Movement Walking (150) Ox1 Location -6/Zion Parts ------- > --- POWER (2) -------- Fission Core Antimatter Reactor > --- PROPULSION (3) --- Flexi-carbon Leg Enhanced Flexi-carbon Leg Enhanced Flexi-carbon Leg > --- UTILITY (8) ------ Advanced Heat Sink Advanced Heat Sink Large Storage Unit Targeting Computer Hardened Light Armor Plating Layered Medium Armor Plating Medium Reactive Plating > --- WEAPON (2) ------- Heavy Riot Gun Improved Lightning Gun > --- INVENTORY (10) --- Antimatter Reactor Enhanced Flexi-carbon Leg Enhanced Flexi-carbon Leg Enhanced Flexi-carbon Leg Advanced Heat Sink Makeshift System Shield Autogun Rocket Launcher Self-destruct Interrupter (50) Self-destruct Interrupter (50) Peak State ------------ > --- POWER ------------ Antimatter Reactor > --- PROPULSION ------- Enhanced Flexi-carbon Leg Enhanced Flexi-carbon Leg Enhanced Flexi-carbon Leg > --- UTILITY ---------- Advanced Heat Sink Advanced Heat Sink Large Storage Unit Advanced Particle Charger Advanced Particle Charger Layered Medium Armor Plating Experimental Thermal Shield > --- WEAPON ----------- Neutron Cannon Neutron Cannon > --- INVENTORY -------- Light Nuclear Core Antimatter Reactor Enhanced Flexi-carbon Leg Enhanced Flexi-carbon Leg Enhanced Flexi-carbon Leg Medium Reactive Plating Hacking Suite Makeshift System Shield Rocket Launcher [Rating: 83] Favorites ----------- Power Antimatter Reactor Engine Ion Engine Power Core Fission Core Reactor Antimatter Reactor Propulsion Enhanced Flexi-carbon Leg Treads Armored Treads Leg Enhanced Flexi-carbon Leg Utility Advanced Heat Sink Device Advanced Heat Sink Storage Large Storage Unit Processor Targeting Computer Hackware Hacking Suite Protection Medium Reactive Plating Weapon Heavy Laser Energy Gun Heavy Laser Energy Cannon Neutron Cannon Ballistic Gun Light Assault Rifle Launcher Rocket Launcher Build | -11 -10 -10 -10 -9 -8 -7 -7 -7 -7 -6 -6 -6 -6 -6 ------- Run | Scr Mat Min Exi Min Mat Fac Low Low Dat Pro Fac Low Low Zio Slots Evolved 8 | . . . . . 4 2 . . . . 2 . . . Power 1 | . . . . . . . . . . . 1 . . . Propulsion 1 | . . . . . . 1 . . . . . . . . Utility 6 | . . . . . 4 1 . . . . 1 . . . Weapon . | . . . . . . . . . . . . . . . Parts Attached 58 | . 5 6 . 10 3 3 2 1 15 . 1 5 5 2 Power 7 | . 1 . . 2 . . 1 . 1 . 1 . 1 . Engine 3 | . 1 . . 2 . . . . . . . . . . Core 3 | . . . . . . . 1 . . . 1 . 1 . Reactor 1 | . . . . . . . . . 1 . . . . . Propulsion 14 | . 1 1 . 6 . 1 1 . 3 . . . 1 . Treads 2 | . . . . . . 1 1 . . . . . . . Leg 12 | . 1 1 . 6 . . . . 3 . . . 1 . Wheel . | . . . . . . . . . . . . . . . Hover . | . . . . . . . . . . . . . . . Flight . | . . . . . . . . . . . . . . . Utility 18 | . 1 . . . 1 2 . 1 9 . . 1 1 2 Device 6 | . . . . . 1 . . . 5 . . . . . Storage 3 | . 1 . . . . 1 . 1 . . . . . . Processor 1 | . . . . . . . . . . . . . 1 . Hackware 1 | . . . . . . . . . 1 . . . . . Protection 7 | . . . . . . 1 . . 3 . . 1 . 2 Artifact . | . . . . . . . . . . . . . . . Weapon 19 | . 2 5 . 2 2 . . . 2 . . 4 2 . Energy Gun 12 | . 2 4 . 1 2 . . . . . . 1 2 . Energy Cannon 3 | . . . . . . . . . 2 . . 1 . . Ballistic Gun 2 | . . 1 . . . . . . . . . 1 . . Ballistic Cannon . | . . . . . . . . . . . . . . . Launcher 2 | . . . . 1 . . . . . . . 1 . . Special Weapon . | . . . . . . . . . . . . . . . Impact Weapon . | . . . . . . . . . . . . . . . Slashing Weapon . | . . . . . . . . . . . . . . . Piercing Weapon . | . . . . . . . . . . . . . . . Special Melee Weapon . | . . . . . . . . . . . . . . . Unidentified Prototypes . | . . . . . . . . . . . . . . . Parts Lost 10 | . 2 3 . . . . . . . . . 2 2 1 Power . | . . . . . . . . . . . . . . . Propulsion 1 | . . 1 . . . . . . . . . . . . Utility 2 | . . . . . . . . . . . . . 1 1 Weapon 7 | . 2 2 . . . . . . . . . 2 1 . Highest Loss Streak 3 | . 2 3 . . . . . . . . . 1 2 1 Average Slot Usage (%) 84 | . 91 95 100 99 53 58 60 61 68 100 89 98 99 99 Engine 5 | . 14 14 14 14 9 7 4 . . . . . . . Core 3 | . . . . . . . 2 7 4 . 2 6 6 6 Reactor 2 | . . . . . . . . . 2 7 6 6 6 6 Treads 3 | . . . . . . 6 9 15 8 . . . . . Leg 19 | . 28 24 28 27 18 15 12 7 13 23 20 20 20 20 Device 11 | . . . . . 8 7 7 7 11 30 26 26 22 19 Storage 10 | . 20 28 28 28 . . . 3 7 7 6 6 6 6 Processor 1 | . . . . . . . . . . . . . 3 6 Hackware 1 | . . . . . . . . . 1 7 6 6 6 . Protection 6 | . . . . . . 5 7 3 2 7 6 12 13 19 Energy Gun 14 | . 8 24 28 24 16 15 15 15 10 . . 5 10 13 Energy Cannon 1 | . . . . . . . . . 4 15 13 3 . . Ballistic Gun 1 | . 19 3 . . . . . . . . . 2 2 . Naked Turns . | . . . . . . . . . . . . . . . Heaviest Build 122 | 11 27 29 29 34 95 115 122 122 118 79 84 84 81 88 Greatest Support 84 | 20 20 20 20 26 26 26 48 48 84 84 84 84 84 76 Greatest Overweight (x) 12 | . 1 2 1 2 3 4 4 2 12 . . . 1 1 Average Overweight (x) 1 | . . 1 1 1 2 3 3 2 1 . . . . 1 Largest Inventory Capacity 12 | . 12 12 12 12 10 10 4 10 10 10 10 10 10 10 Average Capacity 8 | . 8 12 12 12 4 4 4 7 10 10 10 10 10 10 Most Carried 12 | . 7 12 12 12 10 4 4 6 10 10 10 10 10 10 Average Carried 8 | . 6 11 11 11 3 3 4 5 7 10 9 9 9 9 Final Capacity 12 | 6 12 12 12 12 4 4 4 10 10 10 10 10 10 10 Final Carried 12 | 6 7 11 12 12 4 4 4 6 10 10 10 9 10 10 Class Distribution -------------------- 53% | Mutant 46% | Scavenger-Mutant Dominant Class ---------------- Mutant | -10/Materials Mutant | -10/Mines Mutant | -10/Exiles Scavenger-Mutant | -9/Mines Mutant | -8/Materials Mutant | -7/Factory Mutant | -7/Lower Caves Mutant | -7/Lower Caves Mutant | -7/Data Miner Scavenger-Mutant | -6/Proximity Caves Scavenger-Mutant | -6/Factory Scavenger-Mutant | -6/Lower Caves Scavenger-Mutant | -6/Lower Caves Scavenger-Mutant | -6/Zion Resources | -11 -10 -10 -10 -9 -8 -7 -7 -7 -7 -6 -6 -6 -6 -6 ----------- Run | Scr Mat Min Exi Min Mat Fac Low Low Dat Pro Fac Low Low Zio Matter Collected 896 | 200 87 64 . 97 55 30 20 10 150 . 10 82 71 20 Remotely . | . . . . . . . . . . . . . . . Salvage Created 1678 | . 311 258 . 152 . . . 18 . 142 210 331 117 139 Parts 84 | . 23 14 . 10 . . . . . 12 6 12 5 2 Haulers Intercepted . | . . . . . . . . . . . . . . . Recyclers Shooed 1 | . 1 . . . . . . . . . . . . . Parts Field Recycled . | . . . . . . . . . . . . . . . Retrieved Matter . | . . . . . . . . . . . . . . . Parts Self-Destructed 48 | . . . . . . . 21 3 . 12 . 9 3 . Prevented 4 | . . . . . . . 2 . . . . . 2 . Kills | -11 -10 -10 -10 -9 -8 -7 -7 -7 -7 -6 -6 -6 -6 -6 ------- Run | Scr Mat Min Exi Min Mat Fac Low Low Dat Pro Fac Low Low Zio Combat Hostiles Destroyed 44 | . 8 9 . 4 . . . . . 7 1 11 2 2 Guns 28 | . 8 9 . 2 . . . . . . . 5 2 2 Cannons 9 | . . . . . . . . . . 7 1 1 . . AOE 7 | . . . . 2 . . . . . . . 5 . . Classes Destroyed 10 | . 3 1 . 1 . . . 1 . . 2 1 1 . Tunneler 1 | . . 1 . . . . . . . . . . . . Recycler 1 | . . . . . . . . . . . 1 . . . Operator 1 | . 1 . . . . . . . . . . . . . Drone 1 | . . . . . . . . 1 . . . . . . Swarmer 20 | . 2 6 . . . . . . . 7 . 5 . . Grunt 14 | . 6 3 . 3 . . . . . . . 2 . . Brawler 1 | . . . . . . . . . . . . 1 . . Duelist 3 | . . . . 1 . . . . . . . 2 . . Sentry 2 | . . . . . . . . . . . 1 1 . . Hunter 2 | . . . . . . . . . . . . . 2 . Thug 1 | . . . . . . . . . . . . . . 1 Butcher 1 | . . . . . . . . . . . . . . 1 Best Kill Streak 7 | . 4 3 . 3 . . . . . 4 1 7 2 2 Combat Bots Only 7 | . 4 3 . 3 . . . . . 4 1 7 2 2 Max Kills in Single Turn 2 | . 2 1 . 2 . . . 1 . 1 1 2 1 1 Gunslinging 1 | . 1 . . . . . . . . . . . . . Exploded 2 | . . . . 2 . . . . . . . 2 . . Melee . | . . . . . . . . . . . . . . . Uniques/NPCs Destroyed . | . . . . . . . . . . . . . . . Combat | -11 -10 -10 -10 -9 -8 -7 -7 -7 -7 -6 -6 -6 -6 -6 -------- Run | Scr Mat Min Exi Min Mat Fac Low Low Dat Pro Fac Low Low Zio Damage Taken 2029 | . 388 319 . 105 16 . . 8 . 223 87 489 163 231 Core 230 | . 34 69 . 26 . . . 8 . 11 4 54 14 10 Absorbed by Shields . | . . . . . . . . . . . . . . . Core Remaining (%) 86 | 100 . . . 48 100 . . . . 97 . . . . Volleys Fired 108 | . 31 26 . 6 . . . 1 1 9 4 17 6 7 Largest 2 | . 2 2 . 2 . . . 2 2 2 2 2 2 2 Hottest 180 | . 80 80 . 130 . . . 138 138 180 180 180 92 120 Shots Fired 195 | . 60 44 . 12 . . . 2 2 18 8 23 12 14 Gun 155 | . 60 44 . 10 . . . 2 2 . . 11 12 14 Cannon 34 | . . . . . . . . . . 18 8 8 . . Launcher 6 | . . . . 2 . . . . . . . 4 . . Special . | . . . . . . . . . . . . . . . Kinetic 57 | . 47 4 . . . . . . . . . . 6 . Thermal 114 | . 13 40 . 10 . . . 2 2 18 8 19 2 . Explosive 6 | . . . . 2 . . . . . . . 4 . . Electromagnetic 18 | . . . . . . . . . . . . . 4 14 Robot Hit Streak 11 | . 11 7 . 4 . . . . 2 9 11 9 3 10 Robot Miss Streak 4 | . 2 3 . 3 . . . 2 . 1 1 2 4 1 Penetration Max . | . . . . . . . . . . . . . . . Secondary Targets 5 | . 1 2 . 1 . . . . . . . . . 1 Max Gunslinging Chain 1 | . 1 1 . 1 . . . . . . . . . 1 Shots Hit Robots 129 | . 39 30 . 6 . . . . 2 11 6 16 5 14 Core Hits 89 | . 19 15 . 6 . . . 2 . 7 2 21 6 11 Critical Hits 3 | . 2 . . . . . . . . . . . . 1 Critical Kills 2 | . 2 . . . . . . . . . . . . . Critical Parts Destroyed 1 | . . . . . . . . . . . . . . 1 Melee Attacks . | . . . . . . . . . . . . . . . Impact . | . . . . . . . . . . . . . . . Slashing . | . . . . . . . . . . . . . . . Piercing . | . . . . . . . . . . . . . . . Sneak Attacks . | . . . . . . . . . . . . . . . Combat Hostiles . | . . . . . . . . . . . . . . . Follow-up Attacks . | . . . . . . . . . . . . . . . Damage Inflicted 3489 | . 324 339 . 183 . . . 35 37 509 348 1165 206 343 Guns 1552 | . 324 339 . 64 . . . 35 37 . . 204 206 343 Cannons 1156 | . . . . . . . . . . 509 348 299 . . Explosions 781 | . . . . 119 . . . . . . . 662 . . Melee . | . . . . . . . . . . . . . . . Ramming . | . . . . . . . . . . . . . . . Kinetic 336 | . 270 18 . . . . . . . . . . 48 . Thermal 1896 | . 54 321 . 64 . . . 35 37 509 348 503 25 . Explosive 781 | . . . . 119 . . . . . . . 662 . . Electromagnetic 476 | . . . . . . . . . . . . . 133 343 Impact . | . . . . . . . . . . . . . . . Slashing . | . . . . . . . . . . . . . . . Piercing . | . . . . . . . . . . . . . . . Highest Corruption . | . . . . . . . . . . . . . . . Average Corruption . | . . . . . . . . . . . . . . . Corruption Purged . | . . . . . . . . . . . . . . . Overload Shots . | . . . . . . . . . . . . . . . Overflow Damage 79 | . . . . . . . . . . 30 8 41 . . Projectiles 75 | . . . . . . . . . . 30 8 37 . . Explosions 4 | . . . . . . . . . . . . 4 . . Melee . | . . . . . . . . . . . . . . . Knockbacks . | . . . . . . . . . . . . . . . Impact . | . . . . . . . . . . . . . . . Kinetic . | . . . . . . . . . . . . . . . Secondary . | . . . . . . . . . . . . . . . Self-Inflicted Damage 104 | . . . . . . . . . . . . 104 . . Shots 3 | . . . . . . . . . . . . 3 . . Rammed . | . . . . . . . . . . . . . . . Targets Rammed . | . . . . . . . . . . . . . . . Kicked . | . . . . . . . . . . . . . . . Crushed . | . . . . . . . . . . . . . . . Highest Temperature 138 | . 72 111 . 138 . . . 75 60 72 48 81 2 20 Average Temperature 32 | . 21 40 . 56 . . . 41 33 31 24 28 1 8 Received Heat Transfer 487 | . 180 84 . 21 9 . . . . . 54 63 . 76 Siege Activations . | . . . . . . . . . . . . . . . Robots Corrupted . | . . . . . . . . . . . . . . . Combat Hostiles . | . . . . . . . . . . . . . . . Parts Fried 4 | . . . . . . . . . . . . . 1 3 Impact Corruptions . | . . . . . . . . . . . . . . . Robots Melted . | . . . . . . . . . . . . . . . Combat Hostiles . | . . . . . . . . . . . . . . . Parts Melted 3 | . . 2 . 1 . . . . . . . . . . Heat Transferred 2067 | . 125 725 . 161 . . . 74 74 250 175 446 37 . Parts Sabotaged . | . . . . . . . . . . . . . . . Parts Stolen . | . . . . . . . . . . . . . . . Parts Stripped . | . . . . . . . . . . . . . . . Power Chain Reactions . | . . . . . . . . . . . . . . . Missiles Intercepted . | . . . . . . . . . . . . . . . Alert | -11 -10 -10 -10 -9 -8 -7 -7 -7 -7 -6 -6 -6 -6 -6 ------- Run | Scr Mat Min Exi Min Mat Fac Low Low Dat Pro Fac Low Low Zio Peak Influence 545 | . 250 222 . 192 545 387 . . . . 108 . . . Average Influence 137 | . 105 133 . 88 201 270 . . . . 40 . . . Maximum Alert Level 2 | . 1 1 . . 2 1 . . . . . . . . Low Security (%) 70 | . 86 65 . 100 51 . . . . . 100 . . . Level 1 27 | . 13 34 . . 36 100 . . . . . . . . Level 2 2 | . . . . . 11 . . . . . . . . . Level 3 . | . . . . . . . . . . . . . . . Level 4 . | . . . . . . . . . . . . . . . Level 5 . | . . . . . . . . . . . . . . . High Security . | . . . . . . . . . . . . . . . Max Security . | . . . . . . . . . . . . . . . Squads Dispatched 2 | . 1 . . . 1 . . . . . . . . . Investigation . | . . . . . . . . . . . . . . . Extermination . | . . . . . . . . . . . . . . . Reinforcement 2 | . 1 . . . 1 . . . . . . . . . Assault . | . . . . . . . . . . . . . . . Garrison . | . . . . . . . . . . . . . . . Intercept . | . . . . . . . . . . . . . . . Construction Impeded . | . . . . . . . . . . . . . . . Haulers Reinforced . | . . . . . . . . . . . . . . . Stealth | -11 -10 -10 -10 -9 -8 -7 -7 -7 -7 -6 -6 -6 -6 -6 --------- Run | Scr Mat Min Exi Min Mat Fac Low Low Dat Pro Fac Low Low Zio Distress Signals 4 | . 3 . . . 1 . . . . . . . . . Communications Jammed . | . . . . . . . . . . . . . . . Distress Signals . | . . . . . . . . . . . . . . . Times Spotted 88 | . 18 10 . 9 6 . 9 2 1 7 2 13 2 9 Peak Tracking Total 12 | . 4 3 . 3 4 . 4 2 1 4 1 7 2 12 Tactical Retreats 2 | . 1 . . . . . . . . . . 1 . . Traps | -11 -10 -10 -10 -9 -8 -7 -7 -7 -7 -6 -6 -6 -6 -6 ------- Run | Scr Mat Min Exi Min Mat Fac Low Low Dat Pro Fac Low Low Zio Traps Triggered . | . . . . . . . . . . . . . . . Indirectly . | . . . . . . . . . . . . . . . Trap Hack Attempts . | . . . . . . . . . . . . . . . Triggered . | . . . . . . . . . . . . . . . Disarmed . | . . . . . . . . . . . . . . . Reprogrammed . | . . . . . . . . . . . . . . . Reused . | . . . . . . . . . . . . . . . Traps Extracted . | . . . . . . . . . . . . . . . Installed . | . . . . . . . . . . . . . . . Triggered 1 | . . . . . . . . . . 1 . . . . Machines | -11 -10 -10 -10 -9 -8 -7 -7 -7 -7 -6 -6 -6 -6 -6 ---------- Run | Scr Mat Min Exi Min Mat Fac Low Low Dat Pro Fac Low Low Zio Machines Disabled 2 | . . . . . 2 . . . . . . . . . Max in Single Turn . | . . . . . . . . . . . . . . . Machines Sabotaged . | . . . . . . . . . . . . . . . Garrisons Compromised . | . . . . . . . . . . . . . . . Overloaded Fab Kills . | . . . . . . . . . . . . . . . Fab Network Shutdowns . | . . . . . . . . . . . . . . . Hacking | -11 -10 -10 -10 -9 -8 -7 -7 -7 -7 -6 -6 -6 -6 -6 --------- Run | Scr Mat Min Exi Min Mat Fac Low Low Dat Pro Fac Low Low Zio Machines Accessed 6 | . . . 1 . . . . . 3 1 1 . . . Terminals 2 | . . . . . . . . . . 1 1 . . . Fabricators . | . . . . . . . . . . . . . . . Repair Stations . | . . . . . . . . . . . . . . . Recycling Units . | . . . . . . . . . . . . . . . Scanalyzers . | . . . . . . . . . . . . . . . Garrison Access . | . . . . . . . . . . . . . . . Total Hacks 31 | . . . 1 . . . . . 25 2 3 . . . Successful 30 | . . . 1 . . . . . 25 1 3 . . . Failed 1 | . . . . . . . . . . 1 . . . . Catastrophic 1 | . . . . . . . . . . 1 . . . . Database Lockouts . | . . . . . . . . . . . . . . . Manual 3 | . . . 1 . . . . . . 1 1 . . . Terminals 5 | . . . . . . . . . . 2 3 . . . Fabricators . | . . . . . . . . . . . . . . . Repair Stations . | . . . . . . . . . . . . . . . Recycling Units . | . . . . . . . . . . . . . . . Scanalyzers . | . . . . . . . . . . . . . . . Garrison Access . | . . . . . . . . . . . . . . . Terminal Hacks 29 | . . . 1 . . . . . 25 1 2 . . . Record 7 | . . . . . . . . . 6 1 . . . . Part Schematic 10 | . . . . . . . . . 9 . 1 . . . Robot Schematic 7 | . . . . . . . . . 7 . . . . . Prototype ID Bank 3 | . . . . . . . . . 3 . . . . . Level Access Points 1 | . . . . . . . . . . . 1 . . . EX-Prototype ID Bank 1 | . . . 1 . . . . . . . . . . . Fabricator Hacks . | . . . . . . . . . . . . . . . Repair Station Hacks . | . . . . . . . . . . . . . . . Recycling Unit Hacks . | . . . . . . . . . . . . . . . Scanalyzer . | . . . . . . . . . . . . . . . Garrison Access Hacks . | . . . . . . . . . . . . . . . Unauthorized Hacks 1 | . . . . . . . . . . . 1 . . . Terminals 1 | . . . . . . . . . . . 1 . . . Assimilate 1 | . . . . . . . . . . . 1 . . . Fabricators . | . . . . . . . . . . . . . . . Repair Stations . | . . . . . . . . . . . . . . . Recycling Units . | . . . . . . . . . . . . . . . Scanalyzers . | . . . . . . . . . . . . . . . Garrison Access . | . . . . . . . . . . . . . . . Data Cores Recovered . | . . . . . . . . . . . . . . . Used . | . . . . . . . . . . . . . . . Hacking Detections 2 | . . . . . . . . . . 1 1 . . . Full Trace Events . | . . . . . . . . . . . . . . . Feedback Events . | . . . . . . . . . . . . . . . Feedback Blocked . | . . . . . . . . . . . . . . . Robot Schematics Acquired 7 | . . . . . . . . . 7 . . . . . Robots Built . | . . . . . . . . . . . . . . . Matter . | . . . . . . . . . . . . . . . Time . | . . . . . . . . . . . . . . . Total Robot Build Rating . | . . . . . . . . . . . . . . . Part Schematics Acquired 10 | . . . . . . . . . 9 . 1 . . . Parts Built . | . . . . . . . . . . . . . . . Matter . | . . . . . . . . . . . . . . . Time . | . . . . . . . . . . . . . . . Total Part Build Rating . | . . . . . . . . . . . . . . . Parts Repaired . | . . . . . . . . . . . . . . . Time . | . . . . . . . . . . . . . . . Parts Recycled . | . . . . . . . . . . . . . . . Recycled Matter . | . . . . . . . . . . . . . . . Retrieved Matter . | . . . . . . . . . . . . . . . Retrieved Components . | . . . . . . . . . . . . . . . Parts Scanalyzed . | . . . . . . . . . . . . . . . Part Schematics Acquired . | . . . . . . . . . . . . . . . Parts Damaged . | . . . . . . . . . . . . . . . Bothacking | -11 -10 -10 -10 -9 -8 -7 -7 -7 -7 -6 -6 -6 -6 -6 ------------ Run | Scr Mat Min Exi Min Mat Fac Low Low Dat Pro Fac Low Low Zio Used RIF Installer . | . . . . . . . . . . . . . . . Robots Hacked . | . . . . . . . . . . . . . . . Non-combat . | . . . . . . . . . . . . . . . Combat . | . . . . . . . . . . . . . . . Robot Hacks Applied . | . . . . . . . . . . . . . . . Relay Couplers Released . | . . . . . . . . . . . . . . . Robots Rewired 2 | . . . . . . . . . . . . 2 . . Allies Hacked . | . . . . . . . . . . . . . . . Hacks Repelled . | . . . . . . . . . . . . . . . Allies | -11 -10 -10 -10 -9 -8 -7 -7 -7 -7 -6 -6 -6 -6 -6 -------- Run | Scr Mat Min Exi Min Mat Fac Low Low Dat Pro Fac Low Low Zio Total Allies 12 | . . 3 . 2 . . . . . . 1 2 . 4 Largest Group 6 | . . 3 2 4 3 2 2 2 2 . 1 3 3 6 Highest-Rated Group 175 | . . 40 32 77 61 30 30 30 30 . 26 75 75 175 Highest-Rated Ally 37 | . . 16 16 31 31 16 16 16 16 . 26 29 29 37 Total Orders 4 | . . . . . . . 1 1 2 . . . . . STAY 1 | . . . . . . . . . 1 . . . . . ROAM 1 | . . . . . . . . . 1 . . . . . EXPLORE 2 | . . . . . . . 1 1 . . . . . . Ally Attacks 291 | . . 6 . 14 52 14 52 56 93 . . 2 2 . Total Damage 5162 | . . 91 . 178 1413 265 1029 922 1264 . . . . . Kills 49 | . . 1 . 6 15 3 14 5 5 . . . . . Allies Corrupted . | . . . . . . . . . . . . . . . Allies Melted . | . . . . . . . . . . . . . . . Intel | -11 -10 -10 -10 -9 -8 -7 -7 -7 -7 -6 -6 -6 -6 -6 ------- Run | Scr Mat Min Exi Min Mat Fac Low Low Dat Pro Fac Low Low Zio Robot Analysis Total 115 | . . . . . . . . . 115 . . . . . Derelict Logs Recovered 3 | . . . . . . . . 2 . . . . 1 . Drone Launches 69 | . . . . . 30 . 22 17 . . . . . . Drone Recoveries 40 | . . . . . . . 22 17 1 . . . . . Exploration | -11 -10 -10 -10 -9 -8 -7 -7 -7 -7 -6 -6 -6 -6 -6 ------------- Run | Scr Mat Min Exi Min Mat Fac Low Low Dat Pro Fac Low Low Zio Turns Passed 6545 | . 268 744 332 469 389 149 740 666 367 424 106 368 333 1190 Spaces Moved 3701 | 1 133 421 220 289 159 61 298 317 163 328 73 239 223 776 Core 4 | . . . . . . . . . 4 . . . . . Treads 526 | . . . . . . . 115 317 94 . . . . . Legs 3171 | 1 133 421 220 289 159 61 183 . 65 328 73 239 223 776 Wheels . | . . . . . . . . . . . . . . . Hover . | . . . . . . . . . . . . . . . Flight . | . . . . . . . . . . . . . . . Fastest Speed 120 | 120 120 150 150 150 120 210 205 205 120 120 120 120 120 150 Average Speed 160 | 120 130 156 150 150 208 233 226 205 180 120 120 120 138 150 Slowest Speed 650 | 120 150 180 150 180 210 240 240 205 650 120 120 120 150 150 Overloaded Moves . | . . . . . . . . . . . . . . . Propulsion Burnouts . | . . . . . . . . . . . . . . . Robots Hopped . | . . . . . . . . . . . . . . . Cave-ins Triggered . | . . . . . . . . . . . . . . . Exploration Rate (%) 46 | 2 30 51 61 66 27 4 65 71 78 58 2 49 39 87 Regions Visited 14 Branch Regions 10 Pre-discovered Areas 29 | . . . . . . . . . 28 . . . 1 . Known Exits Taken 1 | . . . . . . . . 1 . . . . . . Unknown Exits Taken 13 | 1 1 1 1 1 1 1 1 . 1 1 1 1 1 . Scrap Searched 14 | . . . . 1 . . 2 2 . 2 . 1 2 4 Spaces Dug . | . . . . . . . . . . . . . . . Terrain Destroyed 50 | . . . . 21 . . . . . 8 . 21 . . Melee . | . . . . . . . . . . . . . . . Projectile 10 | . . . . . . . . . . 8 . 2 . . AOE 40 | . . . . 21 . . . . . . . 19 . . Actions | -11 -10 -10 -10 -9 -8 -7 -7 -7 -7 -6 -6 -6 -6 -6 --------- Run | Scr Mat Min Exi Min Mat Fac Low Low Dat Pro Fac Low Low Zio Total 4130 | . 175 461 225 315 219 68 364 331 234 337 82 293 237 789 Wait 199 | . 3 2 . . 47 4 63 11 39 1 2 27 . . Move 3687 | . 132 420 219 288 158 60 297 316 162 327 72 238 222 776 Hop . | . . . . . . . . . . . . . . . Pick Up 29 | . 2 5 1 1 5 . . 2 8 . 2 . 1 2 Fast Attach 31 | . 2 2 . 4 3 2 2 . 10 . . 2 4 . Attach 12 | . 1 2 . . . 1 . . 3 . 1 1 1 2 Detach 3 | . . . . . 1 1 . . . . . . 1 . Swap 15 | . 2 2 . 6 . . . 1 2 . . 2 . . Drop 40 | . 2 2 5 10 5 . 2 . 9 . 1 . 2 2 Fire 108 | . 31 26 . 6 . . . 1 1 9 4 17 6 7 Melee . | . . . . . . . . . . . . . . . Ram . | . . . . . . . . . . . . . . . Kick . | . . . . . . . . . . . . . . . Crush . | . . . . . . . . . . . . . . . Escape Stasis . | . . . . . . . . . . . . . . . Rewire 6 | . . . . . . . . . . . . 6 . . Trap . | . . . . . . . . . . . . . . . Miscellaneous . | . . . . . . . . . . . . . . . Route ------- -11/Scrapyard -10/Materials (discovered 2 exits: [*Min x2]) -10/Mines (discovered 3 exits: [*Mat x2] / *Exi) -10/Exiles -9/Mines -8/Materials -7/Factory -7/Lower Caves (discovered 2 exits: [*Low] / *Dat) -7/Lower Caves (discovered 2 exits: *Fac / *Dat) -7/Data Miner -6/Proximity Caves -6/Factory (discovered 5 exits: Fac x4 / [*Low]) -6/Lower Caves -6/Lower Caves -6/Zion (discovered 1 exit: [*Pro]) History --------- Turn | Location | Event 1 | -11/Scrapyard | Discovered new exit (range 0) 1 | -11/Scrapyard | Entered Materials 18 | -10/Materials | Discovered new exit (range 15) 98 | -10/Materials | Discovered new exit (range 14) 269 | -10/Materials | Entered Mines 273 | -10/Mines | Met a Derelict bent on vengeance 305 | -10/Mines | Build established: Mutant 419 | -10/Mines | Discovered new exit (range 5) 683 | -10/Mines | Assisted by bots powering up and referring to "LRC-V3" 752 | -10/Mines | Discovered new exit (range 9) 799 | -10/Mines | Lost 3 parts (1n2w) 1002 | -10/Mines | Deemed a non-threat by the Exiles lab entrance 1003 | -10/Mines | Discovered new exit (range 5) 1013 | -10/Mines | Entered Exiles 1013 | -10/Exiles | Accompanied by 2 allies 1048 | -10/Exiles | Met 8R-AWN 1075 | -10/Exiles | Met EX-HEX 1118 | -10/Exiles | Met EX-BIN 1139 | -10/Exiles | Aligned with FarCom system 1141 | -10/Exiles | Given EX-Vault access code 1177 | -10/Exiles | Opened EX-Vault 1189 | -10/Exiles | Found Army-in-a-Box 1222 | -10/Exiles | Warned to stay clear of 0b10 Research branches 1266 | -10/Exiles | Met EX-DEC 1330 | -10/Exiles | Discovered new exit (range 10) 1345 | -10/Exiles | Left Exiles lab with Army-in-a-Box 1345 | -10/Exiles | Entered Mines 1345 | -9/Mines | Accompanied by 2 allies 1440 | -9/Mines | Received a Rocket Launcher from a helpful Derelict 1689 | -9/Mines | Core integrity fell below 50% 1690 | -9/Mines | Build established: Scavenger-Mutant 1737 | -9/Mines | Discovered new exit (range 15) 1814 | -9/Mines | Entered Materials 1814 | -8/Materials | Accompanied by 3 allies 1814 | -8/Materials | Evolved 4 slots: Utility x4 1819 | -8/Materials | Led the pair of lost Derelicts to an unsafe place 2160 | -8/Materials | Discovered new exit (range 11) 2161 | -8/Materials | Build established: Mutant 2203 | -8/Materials | Entered Factory 2203 | -7/Factory | Accompanied by 27 allies 2203 | -7/Factory | Evolved 2 slots: Propulsion x1, Utility x1 2324 | -7/Factory | Discovered new exit (range 6) 2352 | -7/Factory | Entered Lower Caves 2352 | -7/Lower Caves | Accompanied by 25 allies 3024 | -7/Lower Caves | Discovered new exit (range 17) 3032 | -7/Lower Caves | A Derelict revealed a hidden shortcut to meet someone special 3092 | -7/Lower Caves | Entered another Lower Caves area 3092 | -7/Lower Caves | Accompanied by 23 allies 3171 | -7/Lower Caves | Encountered a Warlord checkpoint 3172 | -7/Lower Caves | Discovered new exit (range 17) 3590 | -7/Lower Caves | Learned 12 Factory zone layouts 3610 | -7/Lower Caves | Identified exit to Data Miner 3758 | -7/Lower Caves | Entered Data Miner 3758 | -7/Data Miner | Accompanied by 19 allies 3758 | -7/Data Miner | Discovered new exit (range 6) 3797 | -7/Data Miner | Met Data Miner 3838 | -7/Data Miner | Learned location of Section 7 (-2) 3838 | -7/Data Miner | Acquired the access code to Warlord's prototype stash 3875 | -7/Data Miner | Received God Mode back door access code from Data Miner 3918 | -7/Data Miner | Interfaced with the Data Conduit 4034 | -7/Data Miner | Found Exp. Thermal Shield 4125 | -7/Data Miner | Entered Proximity Caves 4283 | -6/Proximity Caves | Build established: Scavenger-Mutant 4534 | -6/Proximity Caves | Discovered new exit (range 10) 4549 | -6/Proximity Caves | Entered Factory 4549 | -6/Factory | Evolved 2 slots: Power x1, Utility x1 4550 | -6/Factory | Identified exit to Factory 4551 | -6/Factory | Loaded intel: 257 machine locations 4637 | -6/Factory | Discovered new exit (range 12) 4655 | -6/Factory | Entered Lower Caves 4655 | -6/Lower Caves | Accompanied by 1 ally 4656 | -6/Lower Caves | Encountered a Warlord checkpoint 4678 | -6/Lower Caves | Attracted the attention of an 0b10 outpost 4721 | -6/Lower Caves | Destroyed 7 combat bots 4980 | -6/Lower Caves | Discovered new exit (range 14) 5023 | -6/Lower Caves | Entered another Lower Caves area 5023 | -6/Lower Caves | Accompanied by 3 allies 5179 | -6/Lower Caves | Encountered a Warlord checkpoint 5340 | -6/Lower Caves | Discovered new exit (range 10) 5356 | -6/Lower Caves | Entered Zion 5356 | -6/Zion | Accompanied by 2 allies 5507 | -6/Zion | Discovered new exit (range 16) 5793 | -6/Zion | Learned Factory scanalyzer intel 6228 | -6/Zion | Gained Derelict followers 6494 | -6/Zion | Rebuked by Imprinter 6522 | -6/Zion | Attempted to imprint without authorization 6522 | -6/Zion | Attacked by Zionites 6546 | -6/Zion | Self-destructed Last Messages --------------- 06532_ IMP:G-0014175/C-0630194 disabled. 06533_ HV Slug penetrates IMP:G-0014175/C-0630194. 06535_ Critical hit. 06536_ Exp. Thermal Shield destroyed. 06536_ Imp. Heat Sink fried. 06536_ Lgt. Angular Momentum Engine fried. 06536_ RZ-3A2(g) destroyed. 06537_ TX-2LI(h) misfires. 06537_ HV Slug penetrates IMP:G-0014175/C-0630194. 06538_ QQ-B0D(c) calibrates the Memory Banks. 06539_ I4-EHY(g) suffers critical hit. 06539_ Destroyed Beamcaster. 06539_ Penetrated by HV Slug. 06541_ TX-2LI(h) IFF system glitched. 06541_ HV Slug penetrates IMP:G-0014175/C-0630194. 06541_ I4-EHY(g) suffers critical hit. 06541_ I4-EHY(g) destroyed. 06543_ Knocked back. 06545_ 9R-5D8(c) calibrates the Memory Banks. 06545_ HV Slug penetrates IMP:G-0014175/C-0630194. Map ----- +----------------------------------------------------+ | ?????????"" """""" | | ?????????"" "##""" | | ?????????"" "####""""""" | | ????????"" ###" "#??##"##""" | | ??????? ??#""" "##??#### # " | | ????????"""????#""" ""#???# " | | ???????????????#""" "##?### " | | ???????????????#"#" ""###"" " | | ???????????#####""# ""##"" # """" | | ??????????##"""#### #####"" " """" | | ??????????#" #???##"" | | ??????????#" #???#"" """" | | ??????????#" #???##" ""#"" | | ??????????## I#### #???#"" """"" | | ???????????# #??######??##"" """" | | ???????##### c#####??????#""" | | ???????""""" """""??????###"" "" " | | ?????######" !M"######??????#""""""""" | | ?????# " "c% " " #??????##""#""""" | | ?????# " M """ #???????#"##"#### | | ?????#"""" M " " #???????##?###??? | | ?????#""""" M% """""#???????????????? | | ?????#""""" %= """" #???????????????? | | ?????#" ""= " ""#???????????????? | | ?????#"" """"%h" " #???????????????? | | ?????#"""""""@ """"" #???????????????? | | ?????#"""" " """""#???????????????? | | ?????# " """ " #???????????????? | | ?????# """"""" """" #???????????????? | | ?????#""""""""" """""#???????????????? | | ???????"" """"" "" #???????????????? | | ????????""""""" ""???????????????????? | | ??????????? """ "???????????????????? | | ???????????????###???????????????????? | | ?????????????????????????????????????? | | ?????????????????????????????????????? | | ?????????????????????????????????????? | | ?????????????????????????????????????? | | ?????????????????????????????????????? | | ?????????????????????????????????????? | | ?????????????????????????????????????? | | ?????????????????????????????????????? | | ?????????????????????????????????????? | | ?????????????????????????????????????? | | ?????????????????????????????????????? | | ?????????????????????????????????????? | | ?????????????????????????????????????? | | ?????????????????????????????????????? | | ?????????????????????????????????????? | | ?????????????????????????????????????? | +----------------------------------------------------+ Best States ------------- Heat Dissipation 75 Energy Generation 34 Energy Capacity 535 Matter Stores 300 Matter Capacity 300 Sight Range 16 Terrain Scan Density 10 Armor Coverage 600 Resistance: KI 30 Resistance: TH 30 Evasion (%) 40 Targeting Accuracy 5 Recoil Reduction 2 Particle Charging 25 Offensive Hacking 10 Item Schematics ----------------- Combat Drone Bay | -7/Data Miner | Free Lgt. Regenerative Plating | -7/Data Miner | Free Exp. Flexi-carbon Leg | -7/Data Miner | Free Cmb. Gravmag System | -7/Data Miner | Free Exp. Targeting Computer | -7/Data Miner | Free Tactical Coordination Suite | -7/Data Miner | Free Cloaking Device | -7/Data Miner | Free Plasma Sword | -7/Data Miner | Free Kinetic Spear | -7/Data Miner | Free Hyp. Gauss Cannon | -6/Factory | Hacked Robot Schematics ------------------ S-27 Virus | -7/Data Miner | Free G-50 Soldier | -7/Data Miner | Free L-41 Fighter | -7/Data Miner | Free X-72 Disruptor | -7/Data Miner | Free P-70 Sage | -7/Data Miner | Free I-36 Angel | -7/Data Miner | Free I-47 Archangel | -7/Data Miner | Free Fabricated ------------ Nothing Alien Tech Used ----------------- None Achievements -------------- None Challenges ------------ None Game ------ Seed MolecularCorruptionConverter Manual? 0 Play Time 00:31:32 Cumulative 320.0 hours Start 2020.06.23 @ 18:15:19 End 2020.06.23 @ 18:45:00 Sessions 2 Manual Loads 0 Difficulty Rogue Special Mode None Game No. 349 Rogue 349 Adventurer 0 Explorer 0 Win Type - Total 29 Types 17/3/2/1/2/1/3 Lore% 93 Gallery% 88 Achievement% 78 Wizard Run 0 Options --------- ASCII 0 Keyboard 0 Movement Arrows Keybinds 0 Fullscreen 2 Font 18/SmallcapsGlow Map View 76x50 Tactical HUD 1 Map Filters NONE Filters NONE Steam 1 RUN: 35588d06-06e3-4864-8941-7123dde0a99c